Cogmind - Beta 14 @@@ ROGUE MODE // 2024.10.19 @ 21:36:46 Player: toydarian Result: Destroyed by as-37481 with Assembled Rifle Performance ------------- Evolutions (0) 0 Regions Visited (2) 400 Robots Destroyed (16) 80 Value Destroyed (438) 438 Prototype IDs (0) 0 Alien Tech Used (0) 0 Bonus (0) 0 TOTAL SCORE: 918 Bonus ------- None Cogmind --------- Core Integrity 0/250 Matter 300/300 Energy 100/100 System Corruption 5% Temperature Warm (180) Movement Core (800) Ox15 Location -10/Mines Parts ------- > --- POWER (1) -------- (None) > --- PROPULSION (2) --- Aluminum Leg > --- UTILITY (2) ------ High-capacity Storage Unit Light Armor Plating > --- WEAPON (2) ------- Light Assault Rifle Hammer > --- INVENTORY (20) --- Ion Engine Aluminum Leg Structural Scanner Sensor Array Signal Interpreter Light Armor Plating Mining Laser Mining Claw Peak State ------------ > --- POWER ------------ Ion Engine > --- PROPULSION ------- Light Treads Light Treads > --- UTILITY ---------- Small Storage Unit High-capacity Storage Unit > --- WEAPON ----------- Assault Rifle Light Assault Rifle > --- INVENTORY -------- Ion Engine Signal Interpreter Light Armor Plating Light Assault Rifle [Rating: 7] Favorites ----------- Power Ion Engine Engine Ion Engine Propulsion Light Treads Treads Light Treads Leg Aluminum Leg Utility High-capacity Storage Unit Device Sensor Array Storage High-capacity Storage Unit Protection Light Armor Plating Weapon Light Assault Rifle Ballistic Gun Light Assault Rifle Impact Weapon Hammer Build | -11 -10 -10 ------- Run | Yrd Mat Min Slots Evolved . | . . . Power . | . . . Propulsion . | . . . Utility . | . . . Weapon . | . . . Parts Attached 15 | 6 9 . Power 1 | 1 . . Engine 1 | 1 . . Core . | . . . Reactor . | . . . Propulsion 4 | 2 2 . Treads 3 | 2 1 . Leg 1 | . 1 . Wheel . | . . . Hover . | . . . Flight . | . . . Utility 6 | 1 5 . Device 1 | . 1 . Storage 2 | 1 1 . Processor . | . . . Hackware . | . . . Protection 3 | . 3 . Artifact . | . . . Weapon 4 | 2 2 . Energy Gun . | . . . Energy Cannon . | . . . Ballistic Gun 3 | 2 1 . Ballistic Cannon . | . . . Launcher . | . . . Special Weapon . | . . . Impact Weapon 1 | . 1 . Slashing Weapon . | . . . Piercing Weapon . | . . . Special Melee Weapon . | . . . Unidentified Prototypes . | . . . Parts Lost 7 | . 5 2 Power 1 | . . 1 Propulsion 3 | . 2 1 Utility 1 | . 1 . Weapon 2 | . 2 . Highest Loss Streak 2 | . 2 2 To Critical Strikes . | . . . Average Slot Usage (%) 95 | . 95 100 Engine 14 | . 14 14 Treads 19 | . 19 14 Leg 7 | . 7 14 Device 1 | . 1 . Storage 14 | . 14 14 Protection 10 | . 10 14 Ballistic Gun 19 | . 19 14 Impact Weapon 7 | . 7 14 Peak Build Rating 7 | 6 7 7 Average Rating 6 | 2 6 6 On Entrance 4 | . 6 7 Naked Turns . | . . . Heaviest Build 51 | 13 51 51 Greatest Support 40 | 40 40 20 Greatest Overweight (x) 16 | . 2 16 Average Overweight (x) 1 | . 1 2 Largest Inventory Capacity 20 | 8 20 20 Average Capacity 19 | 5 19 20 Most Carried 8 | 5 8 8 Average Carried 4 | 4 4 8 Final Capacity 20 | 8 20 20 Final Carried 8 | 2 8 8 Class Distribution -------------------- 100% | Mutant Dominant Class ---------------- Mutant | -10/Materials Mutant | -10/Mines Resources | -11 -10 -10 ----------- Run | Yrd Mat Min Matter Collected 514 | 197 317 . Remotely . | . . . Salvage Created 591 | . 591 . Parts 39 | . 39 . Haulers Intercepted 2 | . 2 . Recyclers Shooed . | . . . Parts Field Recycled . | . . . Retrieved Matter . | . . . Parts Self-Destructed . | . . . Prevented . | . . . Kills | -11 -10 -10 ------- Run | Yrd Mat Min Combat Hostiles Destroyed 10 | . 10 . Guns 10 | . 10 . Classes Destroyed 4 | . 4 . Tunneler 1 | . 1 . Hauler 2 | . 2 . Watcher 3 | . 3 . Grunt 10 | . 10 . Best Kill Streak 3 | . 3 . Combat Bots Only 2 | . 2 . Max Kills in Single Turn 1 | . 1 . Gunslinging . | . . . Exploded . | . . . Melee . | . . . Uniques/NPCs Destroyed . | . . . Combat | -11 -10 -10 -------- Run | Yrd Mat Min Hostile Shots Fired 122 | . 107 15 Missed 32 | . 27 5 Damage Taken 1184 | . 973 211 Core 256 | . 181 75 Absorbed by Shields . | . . . Core Remaining (%) 100 | 100 . . Volleys Fired 78 | . 75 3 Largest 2 | . 2 1 Hottest 40 | . 40 20 Shots Fired 129 | . 126 3 Gun 129 | . 126 3 Cannon . | . . . Launcher . | . . . Special . | . . . Kinetic 129 | . 126 3 Thermal . | . . . Explosive . | . . . Electromagnetic . | . . . Robot Hit Streak 13 | . 13 3 Robot Miss Streak 3 | . 3 1 Penetration Max . | . . . Secondary Targets 2 | . 2 . Max Gunslinging Chain 1 | . 1 . Shots Hit Robots 81 | . 79 2 Core Hits 40 | . 38 2 Critical Kills . | . . . Critical Parts Destroyed 2 | . 2 . Critical Strikes 2 | . 2 . Destroy 2 | . 2 . Melee Attacks 1 | . 1 . Impact 1 | . 1 . Slashing . | . . . Piercing . | . . . Sneak Attacks 1 | . 1 . Combat Hostiles . | . . . Follow-up Attacks . | . . . Damage Inflicted 814 | . 796 18 Guns 760 | . 742 18 Cannons . | . . . Explosions . | . . . Melee 54 | . 54 . Ramming . | . . . Kinetic 760 | . 742 18 Thermal . | . . . Explosive . | . . . Electromagnetic . | . . . Impact 54 | . 54 . Slashing . | . . . Piercing . | . . . Highest Corruption 5 | . . 5 Average Corruption 5 | . . 5 Corruption Purged . | . . . Corruption Blocked . | . . . Effects 1 | . . 1 Heat Flow Errors 1 | . . 1 Overload Shots . | . . . Overflow Damage 32 | . 32 . Projectiles . | . . . Explosions . | . . . Melee 32 | . 32 . Knockbacks . | . . . Impact . | . . . Kinetic . | . . . Secondary . | . . . Self-Inflicted Damage . | . . . Shots . | . . . Rammed . | . . . Targets Rammed . | . . . Kicked . | . . . Crushed . | . . . Highest Temperature 30 | . 30 6 Average Temperature 7 | . 7 4 Received Heat Transfer 543 | . 543 . Siege Activations . | . . . Robots Corrupted . | . . . Combat Hostiles . | . . . Parts Fried . | . . . Impact Corruptions 2 | . 2 . Robots Melted . | . . . Combat Hostiles . | . . . Parts Melted . | . . . Heat Transferred . | . . . Parts Sabotaged . | . . . Parts Stolen . | . . . Parts Stripped . | . . . Power Chain Reactions . | . . . Alert | -11 -10 -10 ------- Run | Yrd Mat Min Peak Influence 110 | . 110 22 Initial 22 | . . 22 Average 23 | . 24 21 Maximum Alert Level . | . . . Low Security (%) 100 | 100 100 100 Level 1 . | . . . Level 2 . | . . . Level 3 . | . . . Level 4 . | . . . Level 5 . | . . . High Security . | . . . Max Security . | . . . Squads Dispatched 2 | . 2 . Investigation 2 | . 2 . Extermination . | . . . Reinforcement . | . . . Assault . | . . . Garrison . | . . . Intercept . | . . . Searches Triggered . | . . . Construction Impeded . | . . . Haulers Reinforced . | . . . Active Scanning Responses . | . . . Cargo Convoy Interrupts . | . . . Stealth | -11 -10 -10 --------- Run | Yrd Mat Min Distress Signals 1 | . 1 . Communications Jammed . | . . . Distress Signals . | . . . Times Spotted 23 | . 18 5 Peak Tracking Total 9 | . 4 9 Tactical Retreats 2 | . 2 . Traps | -11 -10 -10 ------- Run | Yrd Mat Min Traps Triggered . | . . . Indirectly . | . . . Trap Hack Attempts . | . . . Triggered . | . . . Disarmed 4 | . 4 . Reprogrammed . | . . . Reused . | . . . Traps Extracted . | . . . Installed . | . . . Triggered . | . . . Machines | -11 -10 -10 ---------- Run | Yrd Mat Min Machines Disabled . | . . . Max in Single Turn . | . . . Machines Repaired . | . . . Machines Dismantled . | . . . Machines Sabotaged . | . . . Overloaded Fab Kills . | . . . Hacking | -11 -10 -10 --------- Run | Yrd Mat Min Machines Accessed 7 | . 7 . Terminals 7 | . 7 . Fabricators . | . . . Repair Stations . | . . . Recycling Units . | . . . Scanalyzers . | . . . Garrison Access . | . . . Total Hacks 18 | . 18 . Successful 10 | . 10 . Failed 8 | . 8 . Catastrophic 1 | . 1 . Database Lockouts . | . . . Manual 2 | . 2 . Terminals 18 | . 18 . Fabricators . | . . . Repair Stations . | . . . Recycling Units . | . . . Scanalyzers . | . . . Garrison Access . | . . . Terminal Hacks 10 | . 10 . Record 1 | . 1 . Branch Access Points 1 | . 1 . Alert Level 1 | . 1 . Locate Traps 3 | . 3 . Disarm Traps 1 | . 1 . Investigation Status 1 | . 1 . Hauler Manifests 1 | . 1 . Registered Components 1 | . 1 . Fabricator Hacks . | . . . Repair Station Hacks . | . . . Recycling Unit Hacks . | . . . Scanalyzer . | . . . Garrison Access Hacks . | . . . Unauthorized Hacks . | . . . Terminals . | . . . Fabricators . | . . . Repair Stations . | . . . Recycling Units . | . . . Scanalyzers . | . . . Garrison Access . | . . . Data Cores Recovered . | . . . Used . | . . . Hacking Detections 4 | . 4 . Full Trace Events 2 | . 2 . Feedback Events . | . . . Feedback Blocked . | . . . Robot Schematics Acquired . | . . . Robots Built . | . . . Authchips . | . . . Time . | . . . Total Robot Build Rating . | . . . Part Schematics Acquired . | . . . Parts Built . | . . . Authchips . | . . . Time . | . . . Total Part Build Rating . | . . . Parts Repaired . | . . . Time . | . . . Parts Recycled . | . . . Recycled Matter . | . . . Retrieved Matter . | . . . Retrieved Components . | . . . Parts Scanalyzed . | . . . Part Schematics Acquired . | . . . Parts Damaged . | . . . Bothacking | -11 -10 -10 ------------ Run | Yrd Mat Min Used RIF Installer . | . . . Robots Hacked . | . . . Non-combat . | . . . Combat . | . . . Robot Hacks Applied . | . . . Relay Couplers Released . | . . . Fabnet Peak Effective % . | . . . Robots Rewired . | . . . Allies Hacked . | . . . Hacks Repelled . | . . . Allies | -11 -10 -10 -------- Run | Yrd Mat Min Total Allies . | . . . Largest Group . | . . . Highest-Rated Group . | . . . Highest-Rated Ally . | . . . Total Orders . | . . . Ally Attacks . | . . . Total Damage . | . . . Kills . | . . . Allies Corrupted . | . . . Allies Melted . | . . . Intel | -11 -10 -10 ------- Run | Yrd Mat Min Robot Analysis Total . | . . . Derelict Logs Recovered . | . . . Drone Launches . | . . . Drone Recoveries . | . . . Exploration | -11 -10 -10 ------------- Run | Yrd Mat Min Turns Passed 3354 | 60 3162 132 Spaces Moved 1135 | 37 1059 39 Core 11 | 10 . 1 Treads 1124 | 27 1059 38 Legs . | . . . Wheels . | . . . Hover . | . . . Flight . | . . . Fastest Speed 50 | 50 160 320 Average Speed 273 | 130 275 333 Slowest Speed 850 | 160 320 850 Overloaded Moves . | . . . Propulsion Burnouts . | . . . Robots Hopped . | . . . Cave-ins Triggered . | . . . Exploration Rate (%) 40 | 3 100 19 Regions Visited 2 Branch Regions 1 Pre-discovered Areas . | . . . Known Exits Taken 1 | . 1 . Unknown Exits Taken 1 | 1 . . Scrap Searched . | . . . Spaces Dug . | . . . Terrain Destroyed . | . . . Melee . | . . . Projectile . | . . . AOE . | . . . Terrain Rammed . | . . . Walls Destroyed . | . . . Machines Disabled . | . . . Actions | -11 -10 -10 --------- Run | Yrd Mat Min Total 1284 | 47 1195 42 Wait 35 | . 35 . Move 1133 | 36 1058 39 Hop . | . . . Pick Up 18 | 5 13 . Fast Attach 3 | 3 . . Attach 12 | 3 9 . Detach 3 | . 3 . Swap . | . . . Drop 1 | . 1 . Fire 78 | . 75 3 Melee 1 | . 1 . Ram . | . . . Kick . | . . . Crush . | . . . Escape Stasis . | . . . Rewire . | . . . Trap . | . . . Miscellaneous . | . . . Route ------- -11/Scrapyard -10/Materials (discovered 5 exits: [*Mat x3] / *Min / [*Sub]) -10/Mines History --------- Turn | Location | Event 7 | -11/Scrapyard | Discovered new exit (range 15) 61 | -11/Scrapyard | Entered Materials 311 | -10/Materials | Build established: Mutant 661 | -10/Materials | Discovered new exit (range 10) 1306 | -10/Materials | Discovered new exit (range 14) 1340 | -10/Materials | Identified exit to Mines 1427 | -10/Materials | Core integrity fell below 50% 1623 | -10/Materials | Discovered new exit (range 15) 2241 | -10/Materials | Discovered new exit (range 8) 3047 | -10/Materials | Discovered new exit (range 4) 3223 | -10/Materials | Entered Mines 3294 | -10/Mines | Met a Derelict bent on vengeance 3330 | -10/Mines | Assembled infested the area 3348 | -10/Mines | Core integrity fell below 20% 3355 | -10/Mines | Destroyed by as-37481 with Assembled Rifle Last Messages --------------- Map updated. 02994_ ALERT: Suspicious activity at Terminal M001. Dispatching Investigation squad. 03019_ G-34 Mercenary destroyed. 03019_ K-01 Serf collects debris. 03030_ Acquired Aluminum Leg. 03031_ Acquired 7 matter. 03034_ K-01 Serf collects debris. 03047_ EXIT=FOUND LOCATION=MINES GOAL=ESCAPE Something is scanning the area. 03224_ A derelict wanders into view. 03330_ ALERT: Infestation in the mines, dispatching Demolisher response squad. 03350_ Lgt. Treads destroyed. 03351_ Ion Engine destroyed. 03351_ System corrupted by crushing effect (+5). 03351_ Knocked back. 03355_ System corrupted: Heat flow error (+180). Map ----- +----------------------------------------------------+ | ?????????????????????????????????????????????????? | | ????????????????????????? ???????????????????????? | | ???????????????????????? ??????????????????????? | | ???????????????????????? ???????????????????????? | | ???????????????#???????? ???????????????????????? | | ???????##??????# ??????# ???????????????????????? | | ??????## ##????? ###?## ????????????????????????? | | ??????# ##????? ### #????????????????????????? | | ?????## #????## ## #????????????????????????? | | ????## #???## #????????????????????????? | | ?#### #??## #????????????????????????? | | ?# ##### #?????????????????????????? | | ?# ## ### #?????????????????????????? | | ?#??## """ ######????????????????????? | | ?????## """ #????????????????????? | | ??????# ## """ ### #????????????????????? | | ??????# ?# #### #????????????????????? | | ??????# ?# #### #????????????????????? | | ?????? ?## ##??# ####????????????????????? | | ??????##??##### #???# #???????????????????????? | | ??????????????## #???# #???????????????????????? | | ???????????????# #### ##??????????????????????? | | ???????????????# #??????????????????????? | | ???????????????# #### #???????????? ?????????? | | ???????????????## #??# #????????? ????????? | | ????????????????## #??# @##????? ????????? | | ?????????????????? #?## aa#### ???????? | | ?????????????????? #?# a ???????? | | ?????????????????? #?# aa ##??????????????? | | ?????????????????? #?## #####???????????????? | | ?????????????????? #??### #???????????????????? | | ?????????????????? #????#$ #???????????????????? | | ??????????????????###????# ##???????????????????? | | ?????????????????????????# #????????????????????? | | ?????????????????????????# #????????????????????? | | ?????????????????????????# #????????????????????? | | ?????????????????????????# #????????????????????? | | ?????????????????????????? #????????????????????? | | ?????????????????????????? #????????????????????? | | ?????????????????????????? #????????????????????? | | ?????????????????????????? #????????????????????? | | ?????????????????????????? ?????????????????????? | | ?????????????????????????? ?????????????????????? | | ?????????????????????????? ?????????????????????? | | ?????????????????????????????????????????????????? | | ?????????????????????????????????????????????????? | | ?????????????????????????????????????????????????? | | ?????????????????????????????????????????????????? | | ?????????????????????????????????????????????????? | | ?????????????????????????????????????????????????? | +----------------------------------------------------+ Best States ------------- Heat Dissipation 25 Energy Generation 10 Energy Capacity 250 Matter Stores 300 Matter Capacity 300 Sight Range 16 Robot Scan Range 14 Terrain Scan Density 10 Armor Coverage 150 Evasion (%) 50 Recoil Reduction 2 Item Schematics ----------------- None Robot Schematics ------------------ None Fabricated ------------ Nothing Alien Tech Used ----------------- None Achievements -------------- None Challenges ------------ None Game ------ Seed SegregatorWeaponsLattice Manual? 0 Play Time 00:18:08 Cumulative 18.6 hours Start 2024.10.19 @ 21:18:35 End 2024.10.19 @ 21:36:46 Sessions 1 Manual Loads 0 Difficulty Rogue Special Mode None Game No. 12 Rogue 5 Adventurer 0 Explorer 7 Win Type - Total 1 Types 1/0/0/0/0/0/0/0/0 Lore% 11 Gallery% 17 Achievement% 22 Wizard Run 0 Options --------- Layout 0 ASCII 0 Keyboard 0 Movement Mouse Keybinds 0 Fullscreen 1 Font 24/Terminus Map View 76x50 Zoom Use 0% Tactical HUD 1 Map Filters NONE Filters NONE Steam 1 RUN: 2cfc125e-ae58-486b-ae86-e580fd5e058f